[Event "XV American Continental 2022"]
[Site "San Salvador"]
[Date "2022.05.06"]
[Round "7.10"]
[White "Chavez, Ricardo Ernesto"]
[Black "Valdes Romero, Leonardo"]
[Result "0-1"]
[ECO "B07"]
[WhiteElo "2184"]
[BlackElo "2403"]
[Annotator "TA"]
[PlyCount "74"]
[EventDate "2022.05.02"]
[EventCountry "ESA"]
[SourceTitle "playchess.com"]
[Source "ChessBase"]
[SourceQuality "1"]
[TimeControl "40/5400+30:1800+30"]

{[%evp 15,74,19,27,-16,-14,-10,17,13,16,18,18,0,0,0,0,0,6,0,8,7,8,-85,-77,-75,-85,-73,-79,-89,-87,-104,-104,-156,-104,-140,-107,-139,-100,-95,-100,-95,-102,-142,-129,-122,-126,-121,-116,-206,-198,-193,-200,-254,-230,-368,-360,-381,-280,-544,-529,-752,-692]} 1. e4 {[%emt 0:24:11]} d6 {[%emt 0:04:18]} 2. d4 {[%emt 0:02:09]} Nf6 {[%emt 0:00:11]} 3. Nc3 {[%emt 0:00:06]} g6 {[%emt 0:00:23]} 4. Be3 {[%emt 0:00:10]} Bg7 {[%emt 0:00:13]} 5. Qd2 {[%emt 0:00:16]} c6 {[%emt 0:00:37]} 6. Nf3 {[%emt 0:00:29]} b5 {[%emt 0:03:52][%cal Bb7b5,Bb5b4][%mdl 32]} 7. Bd3 {[%emt 0:00:24]} O-O {[%emt 0:01:11]} 8. h3 {[%emt 0:00:49]} Nbd7 {[%emt 0:03:57]} 9. a4 {[%emt 0:02:41] B08: Pirc Defence: Classical System.} (9. O-O $5 {[%cal Re4e5]}) 9... b4 {[%emt 0:03:16]} 10. Ne2 {[%emt 0:00:09]} Qa5 {[%emt 0:00:26]} 11. O-O {[%emt 0:00:52] The position is equal.} c5 {[%emt 0:04:17]} 12. c3 {[%emt 0:01:52]} bxc3 {[%emt 0:07:33]} 13. bxc3 {[%emt 0:00:35]} Ba6 {[%emt 0:00:44]} 14. Bxa6 {[%emt 0:05:19]} Qxa6 {[%emt 0:05:43]} 15. Ng3 {[%emt 0:00:16] [#]} Qa5 $146 {[%emt 0:11:12]} ({Predecessor:} 15... Rfe8 16. Bh6 cxd4 17. cxd4 e5 18. dxe5 dxe5 19. Rad1 Rac8 20. Qg5 Re6 21. Bxg7 Kxg7 {1-0 (31) Flom,G (2437)-Neiman,E (2338) Haguenau 2013}) 16. Rfc1 {[%emt 0:09:07]} Rfb8 {[%emt 0:08:31]} 17. Bh6 {[%emt 0:07:21]} cxd4 {[%emt 0:04:28]} 18. Nxd4 {[%emt 0:03:42]} (18. cxd4 $11 {keeps the balance.} Rb4 19. Bf4) 18... Qc5 $17 {[%emt 0:21:04]} 19. Ndf5 {[%emt 0:10:32] [#]} Bf8 {[%emt 0:11:15]} (19... gxf5 $2 20. Qg5 Ne8 21. Bxg7 Nxg7 22. Nh5 $18) 20. Bxf8 {[%emt 0:09:38]} Kxf8 {[%emt 0:00:40]} 21. Qh6+ {[%emt 0:00:23]} Ke8 {[%emt 0:00:07]} 22. Nd4 {[%emt 0:01:14]} Rb2 {[%emt 0:00:35]} 23. Rcb1 {[%emt 0:14:06] [#]} (23. Qg7 $142) 23... Rab8 {[%emt 0:00:35]} ({Not} 23... Qxc3 24. Nb5 Rxb1+ 25. Rxb1 $11) ({Black should play} 23... Rxb1+ $1 24. Rxb1 Rb8 25. Rxb8+ Nxb8) 24. Qc1 {[%emt 0:00:29]} R2b6 {[%emt 0:03:33] Black is much more active.} 25. Rb5 {[%emt 0:02:27]} Qc4 {[%emt 0:00:24]} 26. Rxb6 {[%emt 0:01:33]} Rxb6 {[%emt 0:00:09]} 27. a5 {[%emt 0:00:26]} Rb8 {[%emt 0:00:15]} 28. Rb1 {[%emt 0:00:56]} Rxb1 {[%emt 0:02:04]} 29. Qxb1 {[%emt 0:00:05]} Qxc3 {[%emt 0:00:03]} 30. Qb7 {[%emt 0:00:21]} Qxa5 {[%emt 0:00:44] Strongly threatening ...Kf8.} 31. Nc6 {[%emt 0:02:21]} (31. Qa8+ $17 Qd8 32. Qxa7) 31... Qe1+ $19 {[%emt 0:00:10]} 32. Kh2 {[%emt 0:00:04][%cal Rb7c8]} Kf8 {[%emt 0:01:01]} 33. Qxa7 {[%emt 0:00:07]} h5 {[%emt 0:01:15][%cal Bh7h5,Bh5h4][%mdl 32] White must now prevent ...h4.} 34. Nd4 {[%emt 0:00:36]} (34. f3 $142) 34... h4 {[%emt 0:00:43]} 35. Qa8+ {[%emt 0:01:35]} Ne8 {[%emt 0:00:31]} 36. Nge2 {[%emt 0:00:21]} (36. Nh1) 36... e5 {[%emt 0:01:15][%cal Be7e5,Be5d4][%mdl 32]} 37. Qd8 {[%emt 0:00:45][%cal Od4c6]} exd4 {[%emt 0:00:28] Weighted Error Value: White=0.47/Black=0.12 (very precise)} 0-1

[Event "XV American Continental 2022"]
[Site "San Salvador"]
[Date "2022.05.06"]
[Round "7.11"]
[White "Thavandiran, Shiyam"]
[Black "Arias Gaviria, Mario Alexis"]
[Result "1/2-1/2"]
[ECO "B94"]
[WhiteElo "2399"]
[BlackElo "2181"]
[Annotator "TA"]
[PlyCount "49"]
[EventDate "2022.05.02"]
[EventCountry "ESA"]
[SourceTitle "playchess.com"]
[Source "ChessBase"]
[SourceQuality "1"]
[TimeControl "40/5400+30:1800+30"]

{[%evp 13,49,16,39,21,25,21,39,18,41,18,20,0,0,31,20,0,0,-31,-33,-16,0,1,21,30,6,-84,-81,-83,-83,-89,-83,-113,-110,-110,-83,-90,-91,-91]} 1. e4 {[%emt 0:00:04]} c5 {[%emt 0:04:57]} 2. Nf3 {[%emt 0:00:10]} d6 {[%emt 0:00:06]} 3. d4 {[%emt 0:01:58]} cxd4 {[%emt 0:00:03]} 4. Nxd4 {[%emt 0:00:11]} Nf6 {[%emt 0:00:03]} 5. Nc3 {[%emt 0:00:06]} a6 {[%emt 0:00:01]} 6. Bg5 {[%emt 0:03:41]} Nbd7 {[%emt 0:01:14]} 7. Bc4 {[%emt 0:00:37] 7.Qe2 is a critical line.} g6 {[%emt 0:01:27]} 8. O-O {[%emt 0:04:33] B94: Sicilian Najdorf: 6 Bg5 Nbd7.} Bg7 {[%emt 0:00:04]} 9. Re1 {[%emt 0:01:33]} h6 {[%emt 0:03:52]} 10. Bh4 {[%emt 0:03:49] White is slightly better.} O-O {[%emt 0:04:07]} 11. a4 {[%emt 0:12:42] [#]} Re8 $146 {[%emt 0:12:03]} ({Predecessor:} 11... Ne5 12. Bb3 Nc6 13. Nxc6 bxc6 14. e5 dxe5 15. Rxe5 Qxd1+ 16. Rxd1 e6 17. Re3 a5 {0-1 (35) Vlaovic,D (2250)-Anastasian,A (2445) Novi Sad 1988}) 12. Ra3 {[%emt 0:40:10]} Qa5 {[%emt 0:06:56]} 13. Ba2 {[%emt 0:01:50]} e6 {[%emt 0:32:17]} 14. Nb3 {[%emt 0:13:02]} (14. Ndb5 {feels hotter.} axb5 15. axb5 Qxc3 16. Rxc3 Rxa2 17. Rd3) 14... Qh5 {[%emt 0:02:10]} 15. Bg3 {[%emt 0:00:31]} Qxd1 {[%emt 0:01:05]} 16. Rxd1 {[%emt 0:00:02]} Ne5 {[%emt 0:01:51] ...Nc4 is the strong threat.} 17. Na5 {[%emt 0:00:28] Against Nc4} ({Don't blunder} 17. Rxd6 $2 Nc4 18. Nc1 Nxa3 19. bxa3 Nh5 $19) 17... Bf8 {[%emt 0:14:22]} 18. Rb3 $1 {[%emt 0:02:06]} b5 {[%emt 0:00:29]} 19. Rb4 {[%emt 0:05:37] [#]} ({Reject} 19. axb5 axb5 20. Rxb5 Bd7 21. Rxe5 dxe5 $17) (19. f3 $11) 19... Nh5 $1 $17 {[%emt 0:07:28] Black is better.} 20. Rbd4 {[%emt 0:00:49]} Nxg3 {[%emt 0:01:02]} 21. hxg3 {[%emt 0:00:02]} Rb8 {[%emt 0:01:40]} 22. b4 {[%emt 0:05:37]} Bd7 {[%emt 0:00:04]} 23. axb5 {[%emt 0:00:36]} axb5 {[%emt 0:00:13]} 24. Bb3 {[%emt 0:01:23]} Rec8 {[%emt 0:01:01]} 25. Ne2 {[%emt 0:00:13] Weighted Error Value: White=0.19 (very precise) /Black=0.02 (flawless)} 1/2-1/2

[Event "XV American Continental 2022"]
[Site "San Salvador"]
[Date "2022.05.08"]
[Round "8.1"]
[White "Gareyev, Timur"]
[Black "Yoo, Christopher Woojin"]
[Result "1-0"]
[ECO "E51"]
[WhiteElo "2565"]
[BlackElo "2535"]
[Annotator "TA"]
[PlyCount "89"]
[EventDate "2022.05.02"]
[EventCountry "ESA"]
[SourceTitle "playchess.com"]
[Source "ChessBase"]
[SourceQuality "1"]
[TimeControl "40/5400+30:1800+30"]

{[%evp 16,89,0,0,0,0,0,0,25,0,0,0,0,0,-23,-14,-21,-12,-10,-22,-20,-32,-27,-67,-64,-52,-58,-54,0,-29,-19,-113,-105,-134,-127,-113,0,-100,-21,-17,-16,-16,145,154,274,279,393,388,301,379,386,381,493,478,489,432,431,428,752,537,509,0,793,768,612,482,1263,1263,1899,1227,1889,1091,2283,1407,29991,29991]} 1. d4 {[%emt 0:01:24]} Nf6 {[%emt 0:00:11]} 2. c4 {[%emt 0:00:19]} e6 {[%emt 0:00:13]} 3. Nc3 {[%emt 0:00:19]} Bb4 {[%emt 0:00:10]} 4. e3 {[%emt 0:00:49]} O-O {[%emt 0:00:07]} 5. Bd3 {[%emt 0:00:38]} d5 {[%emt 0:00:08]} 6. a3 {[%emt 0:01:17]} Be7 {[%emt 0:05:46]} 7. Nf3 {[%emt 0:02:27]} dxc4 {[%emt 0:05:19]} 8. Bxc4 {[%emt 0:00:59]} c5 {[%emt 0:00:38]} 9. O-O {[%emt 0:00:29]} a6 {[%emt 0:04:19] E51: Nimzo-Indian: Rubinstein: 4...0-0 5 Nf3 d5.} 10. dxc5 {[%emt 0:00:10]} Bxc5 {[%emt 0:01:09]} 11. Qe2 {[%emt 0:01:29]} b5 {[%emt 0:02:21] The position is equal.} 12. Bd3 {[%emt 0:01:15]} (12. Ba2 $142) 12... Bb7 $11 {[%emt 0:02:54]} 13. e4 {[%emt 0:00:18][%cal Be3e4,Be4e5][%mdl 32]} Nbd7 {[%emt 0:01:24]} 14. e5 {[%emt 0:08:40] [#]} Bxf3 $146 {[%emt 0:00:21]} ({Predecessor:} 14... Ne8 15. Rd1 Qe7 16. Bxh7+ Kxh7 17. Ng5+ Kg6 18. Qd3+ f5 19. exf6+ Kxf6 20. Qxd7 Qxd7 21. Rxd7 Nd6 22. Nh7+ Ke5 23. Nxf8 Rxf8 24. Be3 Bxe3 25. fxe3 g6 26. Rd1 Bd5 27. Rxd6 {1-0 (26) Bouvier,B-Antonoff,G (2185) Paris 1995}) 15. gxf3 {[%emt 0:00:26]} Nh5 {[%emt 0:03:40][%cal Bf6h5,Bh5g7,Bg7f5,Bf5h4][%mdl 32]} ({But not} 15... Nxe5 16. Qxe5 Qxd3 17. Qxc5 $16) 16. Qe4 {[%emt 0:34:25][%csl Gd3][%cal Re4h7]} g6 {[%emt 0:08:22]} 17. Be2 {[%emt 0:05:53]} Ng7 {[%emt 0:06:15]} 18. Bh6 {[%emt 0:03:07]} Re8 {[%emt 0:02:42]} 19. Rad1 {[%emt 0:04:09]} Nf5 {[%emt 0:01:49]} 20. Bc1 {[%emt 0:00:24]} Qc7 {[%emt 0:01:17]} 21. f4 {[%emt 0:00:05]} Bb6 {[%emt 0:03:44]} (21... Nb6 $15) 22. Bf3 {[%emt 0:02:23]} Nc5 {[%emt 0:02:38]} 23. Qc6 {[%emt 0:01:20]} (23. Qc2 $11) 23... Qa7 $1 $17 {[%emt 0:06:13] White must now prevent ...Rac8.} 24. Bg4 {[%emt 0:02:34] [#]} Nh4 $1 {[%emt 0:03:10] Pair of Knights!} 25. Rd6 {[%emt 0:03:00] [#]} Bc7 {[%emt 0:03:37]} (25... Rab8 $1 $17 26. Be3 h5) 26. Rdd1 {[%emt 0:01:14]} (26. Rd5 $11 {remains equal.} exd5 27. Nxd5) 26... Rac8 {[%emt 0:02:14]} ({Better is} 26... Rec8 $17 {...h5 is the strong threat.} 27. Qh1 Bb6) 27. Nd5 $1 $11 {[%emt 0:06:41] [#]} Bxe5 {[%emt 0:04:56]} 28. Qb6 {[%emt 0:01:16]} Qa8 {[%emt 0:00:36]} (28... Qxb6 $11 29. Nxb6 Rc6 30. fxe5 Rxb6) 29. fxe5 $16 {[%emt 0:00:44] Threatens to win with Nf6+. White now steadily converts the win.} exd5 {[%emt 0:00:14]} (29... h5 $16 30. Nf6+ (30. Bg5 exd5 31. Bxh4 hxg4 $17) 30... Kh8) 30. Qf6 $18 {[%emt 0:00:30] Bh6 would kill now.} g5 {[%emt 0:02:50]} (30... Nf5 {was called for.}) 31. Qxg5+ {[%emt 0:03:23]} Ng6 {[%emt 0:00:05]} 32. Bxc8 {[%emt 0:00:33]} Rxc8 {[%emt 0:00:36]} 33. Qg2 {[%emt 0:00:42]} Rd8 {[%emt 0:05:17]} 34. Bg5 {[%emt 0:00:36]} Re8 {[%emt 0:00:01]} 35. Rxd5 {[%emt 0:01:47]} Ne6 {[%emt 0:00:14]} 36. Rfd1 {[%emt 0:02:36]} Kh8 {[%emt 0:02:02]} (36... Qa7 $142 37. Bf6 Qc7) 37. Bf6+ {[%emt 0:00:29]} Kg8 {[%emt 0:00:04]} 38. Bg5 {[%emt 0:00:04] Against Nef4} (38. Qg4 $142) 38... Kh8 $1 {[%emt 0:00:53] [#]} 39. Qf3 {[%emt 0:02:15] Against Nef4} Kg8 {[%emt 0:01:22]} 40. Bh6 {[%emt 0:01:57] And now Qf6 would win.} Qc8 {[%emt 0:05:25]} (40... Ne7 $142 41. R5d3 Qxf3 42. Rxf3 Nc6) 41. Qf6 {[%emt 0:33:01] Strongly threatening Rd7.} Qc4 {[%emt 0:32:52]} 42. Rd7 {[%emt 0:01:26]} Rf8 {[%emt 0:07:48]} 43. h3 {[%emt 0:03:52][%cal Od1d4] Hoping for R1d4!} a5 {[%emt 0:03:36]} 44. Kh2 {[%emt 0:00:00] Threatening mate with Rg1.} Qb3 {[%emt 0:00:00]} 45. R1d6 {[%emt 0:00:00] Weighted Error Value: White=0.39/Black=0.31} 1-0

[Event "XV American Continental 2022"]
[Site "San Salvador"]
[Date "2022.05.08"]
[Round "8.2"]
[White "Kaidanov, Gregory"]
[Black "Swiercz, Dariusz"]
[Result "1-0"]
[ECO "E25"]
[WhiteElo "2556"]
[BlackElo "2665"]
[Annotator "TA"]
[PlyCount "57"]
[EventDate "2022.05.02"]
[EventCountry "ESA"]
[SourceTitle "playchess.com"]
[Source "ChessBase"]
[SourceQuality "1"]
[TimeControl "40/5400+30:1800+30"]

{[%evp 14,57,0,0,5,-16,-4,-50,-54,-57,0,0,0,-22,15,21,23,0,10,15,23,20,25,25,18,15,45,0,150,148,147,150,156,141,564,556,1659,778,29969,29969,5714,5297,29994,29995,29995,29996]} 1. d4 {[%emt 0:21:51]} Nf6 {[%emt 0:01:04]} 2. c4 {[%emt 0:00:04]} e6 {[%emt 0:00:09]} 3. Nc3 {[%emt 0:00:04]} Bb4 {[%emt 0:01:25]} 4. a3 {[%emt 0:00:11]} Bxc3+ {[%emt 0:00:11]} 5. bxc3 {[%emt 0:00:02]} c5 {[%emt 0:01:03]} 6. f3 {[%emt 0:00:02]} d5 {[%emt 0:18:25] 6...Nc6 might become the main line.} 7. cxd5 {[%emt 0:00:06]} exd5 {[%emt 0:00:02]} 8. e3 {[%emt 0:00:19]} c4 {[%emt 0:00:03] E25: Nimzo-Indian: Sämisch: 5...c5 6 f3 d5 7 cxd5.} 9. Ne2 {[%emt 0:04:24]} Nc6 {[%emt 0:00:12][%cal Bb8c6,Bc6a5,Ba5b3][%mdl 32]} 10. Ng3 {[%emt 0:08:22]} (10. Rb1 $11) 10... h5 $15 {[%emt 0:07:46] Black is slightly better.} 11. h4 {[%emt 0:00:32]} Qc7 {[%emt 0:04:19]} 12. Kf2 {[%emt 0:01:17]} Na5 {[%emt 0:00:43] [#]} 13. Rb1 $146 {[%emt 0:01:24][%cal Ba1b1,Bb1b5,Bb5h5,Bh5h6][%mdl 32]} ({Predecessor:} 13. Be2 Bd7 14. e4 dxe4 15. fxe4 Nb3 16. Rb1 O-O-O 17. Bg5 Ng4+ 18. Bxg4 Bxg4 19. Qc2 {0-1 (38) Ciorica,M (2071)-Cioara,A (2437) Arad 2016}) 13... O-O {[%emt 0:14:14]} 14. e4 {[%emt 0:02:30]} dxe4 {[%emt 0:00:05]} 15. Rb5 {[%emt 0:00:28]} Nb3 {[%emt 0:08:15] Pair of Knights!} 16. Nxh5 {[%emt 0:04:15]} ({Much weaker is} 16. Nxe4 Nxe4+ 17. fxe4 Bg4 $17) 16... Nxh5 {[%emt 0:01:23]} 17. Rxh5 {[%emt 0:00:18]} Bd7 {[%emt 0:29:08]} 18. Be3 {[%emt 0:08:59]} Rae8 {[%emt 0:00:52]} 19. f4 {[%emt 0:01:01][%cal Bf3f4,Bf4f5][%mdl 32] Black must now prevent f5.} f6 {[%emt 0:01:48]} 20. f5 {[%emt 0:01:38] Threatens to win with Qg4.} Re7 {[%emt 0:04:06] [#]} ({Black should try} 20... Rd8 $1 $11) 21. Qg4 $1 $16 {[%emt 0:01:30]} Be8 {[%emt 0:04:20] Prevents Qg6.} 22. Rh6 $1 {[%emt 0:02:06]} b5 {[%emt 0:00:01] Strongly threatening ...Qa5.} 23. h5 {[%emt 0:04:54][%cal Oh6g6,Bh4h5,Bh5h6][%mdl 32] Rg6! is the strong threat.} a5 $2 {[%emt 0:00:49][%mdl 8192] [#] This costs Black the game.} (23... Qa5 $2 24. Rg6 Nxd4 25. Bxd4 $18) (23... Na1 $16 {is a better chance.}) 24. Rg6 $1 $18 {[%emt 0:00:45][%mdl 512]} b4 {[%emt 0:00:06]} (24... Qc8 25. Qf4) 25. axb4 {[%emt 0:01:33]} (25. h6 $142 Rff7 26. axb4) 25... axb4 {[%emt 0:00:02]} 26. h6 {[%emt 0:01:24]} Bxg6 {[%emt 0:00:12]} 27. hxg7 {[%emt 0:00:32]} Rff7 {[%emt 0:02:42]} 28. Rh8+ {[%emt 0:02:11]} Kxg7 {[%emt 0:00:02]} 29. Qh4 {[%emt 0:00:09] Weighted Error Value: White=0.06 (flawless) /Black=1.14} 1-0

[Event "XV American Continental 2022"]
[Site "San Salvador"]
[Date "2022.05.07"]
[Round "8.3"]
[White "Krysa, Leandro"]
[Black "Quesada Perez, Yasser"]
[Result "0-1"]
[ECO "E20"]
[WhiteElo "2525"]
[BlackElo "2560"]
[Annotator "TA"]
[PlyCount "94"]
[EventDate "2022.05.02"]
[EventCountry "ESA"]
[SourceTitle "playchess.com"]
[Source "ChessBase"]
[SourceQuality "1"]
[TimeControl "40/5400+30:1800+30"]

{[%evp 21,94,27,27,33,23,25,22,16,17,16,16,16,13,20,20,0,8,0,0,-12,-10,-11,0,-97,-54,-48,-50,-86,-74,-90,-86,-97,-80,-94,-47,-64,-58,-82,-50,-103,-95,-98,-80,-155,-113,-222,-149,-295,-277,-299,-280,-290,-275,-345,-330,-523,-541,-602,-483,-600,-589,-570,-545,-747,-738,-753,-755,-771,-738,-747,-740,-731,-702,-1011,-633]} 1. d4 {[%emt 0:00:03]} Nf6 {[%emt 0:00:52]} 2. c4 {[%emt 0:00:13]} e6 {[%emt 0:00:10]} 3. Nc3 {[%emt 0:00:08]} Bb4 {[%emt 0:00:14]} 4. g3 {[%emt 0:00:11]} c5 {[%emt 0:00:33]} 5. Nf3 {[%emt 0:00:33][%cal Bg1f3,Bf3d2,Bd2b3,Bb3c5][%mdl 32]} Ne4 {[%emt 0:01:02]} 6. Qd3 {[%emt 0:02:02]} Qa5 {[%emt 0:07:07]} 7. Qxe4 {[%emt 0:00:42]} Bxc3+ {[%emt 0:00:05]} 8. Bd2 {[%emt 0:00:17]} Bxd2+ {[%emt 0:00:39]} 9. Nxd2 {[%emt 0:00:06]} O-O {[%emt 0:07:31]} 10. dxc5 {[%emt 0:06:28]} Qxc5 {[%emt 0:21:07]} 11. Bg2 {[%emt 0:01:11]} Nc6 {[%emt 0:00:22]} 12. O-O {[%emt 0:02:05] E20: Nimzo-Indian: 4 g3 and 4 f3.} b5 {[%emt 0:00:40]} 13. Nb3 {[%emt 0:23:25]} Qxc4 {[%emt 0:01:47] [#]} 14. Rac1 $146 {[%emt 0:05:48] The position is equal.} ({Predecessor:} 14. Qe3 b4 15. Rfc1 Qa6 16. Qd2 Rb8 17. Qd6 Qb6 18. Rd1 f6 19. Rac1 Ne5 20. Rc7 Qxd6 21. Rxd6 {1-0 (54) Spasov,S (2282)-Kosirog,N (2068) ICCF email 2016}) 14... Qxe4 {[%emt 0:01:13]} 15. Bxe4 {[%emt 0:01:16][%cal Ob3a5]} a5 {[%emt 0:03:45][%cal Ba7a5,Ba5a4,Ba4a3][%mdl 32]} 16. Rfd1 {[%emt 0:04:48]} a4 {[%emt 0:01:52]} 17. Bxc6 {[%emt 0:01:45]} ({Don't play} 17. Nd4 Nxd4 $1 18. Rxd4 d5 $15) 17... dxc6 {[%emt 0:00:06]} 18. Nc5 {[%emt 0:01:50]} a3 {[%emt 0:00:25]} 19. b4 {[%emt 0:01:19]} e5 {[%emt 0:00:04]} 20. Kf1 {[%emt 0:11:36]} Bf5 {[%emt 0:03:02]} 21. Ke1 {[%emt 0:09:31]} Rfd8 {[%emt 0:02:08]} 22. f3 {[%emt 0:08:57]} (22. Rxd8+ $11 Rxd8 23. Nd3) 22... f6 {[%emt 0:03:21]} 23. Rxd8+ {[%emt 0:06:10]} Rxd8 $15 {[%emt 0:00:07][%mdl 4096] Endgame KRB-KRN} 24. Rc3 {[%emt 0:00:17]} Ra8 $1 {[%emt 0:04:01] White must now prevent ...Bb1. Black is more active.} 25. e4 {[%emt 0:01:15]} Bg6 {[%emt 0:00:06]} 26. Nb3 {[%emt 0:04:02]} Ra4 {[%emt 0:02:12] Strongly threatening ...h5.} 27. Rxc6 {[%emt 0:01:21]} h5 {[%emt 0:03:36]} (27... f5 $17 28. exf5 Bxf5) 28. Kd2 {[%emt 0:01:25]} Rxb4 {[%emt 0:00:31]} 29. Ra6 {[%emt 0:01:13]} Ra4 {[%emt 0:04:56]} 30. Rb6 {[%emt 0:00:10] Black continues to play with concentration.} (30. Rxa4 $1 $15 bxa4 31. Nc1) 30... Be8 $1 $17 {[%emt 0:06:21]} 31. Rb8 {[%emt 0:00:15]} Kf7 {[%emt 0:00:07]} 32. Nc5 {[%emt 0:02:40]} (32. Rb7+ $142 Kg6 33. Rb8) 32... Rd4+ {[%emt 0:04:54]} 33. Ke3 {[%emt 0:00:09]} (33. Nd3 $17) 33... Ke7 {[%emt 0:01:13]} 34. Rb7+ {[%emt 0:01:43]} (34. Nd3 $17) 34... Kd6 $19 {[%emt 0:00:06]} 35. Nb3 {[%emt 0:00:38]} Rd1 {[%emt 0:07:30]} 36. Rxg7 {[%emt 0:00:26]} Rh1 {[%emt 0:00:35]} 37. Ra7 {[%emt 0:01:07] [#]} b4 {[%emt 0:00:04]} ({Not} 37... Rxh2 38. Ra6+ Ke7 39. Rxa3 $15) 38. Ra6+ {[%emt 0:01:46] [#]} (38. Ra8 {was worth a try.} Bf7 39. Ra6+ Ke7 40. Na5) 38... Kc7 $1 {[%emt 0:00:23] Black is clearly winning.} 39. Nc5 {[%emt 0:00:35]} Rxh2 {[%emt 0:03:05]} 40. Ne6+ {[%emt 0:00:32]} Kd7 {[%emt 0:01:06]} 41. Nc5+ {[%emt 0:01:27]} Ke7 {[%emt 0:06:54]} 42. Re6+ {[%emt 0:19:19]} Kf7 {[%emt 0:02:24]} 43. Rb6 {[%emt 0:00:31]} Rxa2 {[%emt 0:01:41]} 44. Rb7+ {[%emt 0:00:27]} Kg8 {[%emt 0:00:21] ...Rc2 is the strong threat.} 45. Nd3 {[%emt 0:04:48]} Ra1 {[%emt 0:03:34] Hoping for ...a2.} 46. Nxb4 {[%emt 0:03:08]} Rb1 {[%emt 0:00:05][%cal Ob1b4] aiming for ...Rxb4!} 47. Re7 {[%emt 0:00:58]} Kf8 {[%emt 0:00:12] Weighted Error Value: White=0.38/Black=0.07 (flawless)} 0-1

[Event "XV American Continental 2022"]
[Site "San Salvador"]
[Date "2022.05.07"]
[Round "8.4"]
[White "Pichot, Alan"]
[Black "Diaz Rosas, Julio Cesar"]
[Result "1-0"]
[ECO "B31"]
[WhiteElo "2652"]
[BlackElo "2351"]
[Annotator "TA"]
[PlyCount "59"]
[EventDate "2022.05.02"]
[EventCountry "ESA"]
[SourceTitle "playchess.com"]
[Source "ChessBase"]
[SourceQuality "1"]
[TimeControl "40/5400+30:1800+30"]

{[%evp 16,59,12,12,18,15,19,10,35,0,31,24,25,0,25,12,88,81,79,70,75,75,87,87,89,80,80,84,113,114,135,138,141,87,88,93,96,103,101,100,95,98,104,108,113,114]} 1. e4 {[%emt 0:00:03]} c5 {[%emt 0:02:34]} 2. Nf3 {[%emt 0:00:08]} Nc6 {[%emt 0:00:23]} 3. Bb5 {[%emt 0:00:09]} g6 {[%emt 0:00:08]} 4. Bxc6 {[%emt 0:00:29]} dxc6 {[%emt 0:01:54]} 5. d3 {[%emt 0:00:08]} Bg7 {[%emt 0:00:11]} 6. h3 {[%emt 0:00:07]} Nf6 {[%emt 0:00:53][%cal Bg8f6,Bf6d7,Bd7f8,Bf8e6,Be6d4][%mdl 32]} 7. Nc3 {[%emt 0:00:26]} Nd7 {[%emt 0:00:33] is more profitable than 7...0-0 at the moment.} 8. Be3 {[%emt 0:00:46]} e5 {[%emt 0:00:20]} 9. Qd2 {[%emt 0:00:43]} h6 {[%emt 0:03:58] B31: Sicilian: 2...Nc6 3 Bb5 g6.} 10. O-O {[%emt 0:00:55]} b6 {[%emt 0:00:10]} 11. Nh2 {[%emt 0:00:52]} Nf8 {[%emt 0:00:07] The position is equal.} 12. f4 {[%emt 0:01:03]} exf4 {[%emt 0:00:07]} 13. Bxf4 {[%emt 0:00:50]} Ne6 {[%emt 0:06:39]} 14. Bg3 {[%emt 0:00:30]} Nd4 {[%emt 0:05:42]} 15. Rae1 {[%emt 0:04:27]} Qe7 {[%emt 0:05:33] [#]} (15... O-O $11) 16. Nd5 $1 {[%emt 0:16:52]} cxd5 {[%emt 0:00:09]} 17. exd5 {[%emt 0:00:05] aiming for Bd6.} Ne6 {[%emt 0:01:59]} 18. Ng4 {[%emt 0:15:27] Hoping for Be5.} Qg5 {[%emt 0:07:14]} 19. Qxg5 {[%emt 0:02:54] White is much more active.} hxg5 {[%emt 0:00:07] [#]} 20. dxe6 $146 {[%emt 0:00:59]} ({Predecessor:} 20. Be5 Bxe5 21. Nxe5 Rh7 22. dxe6 Bxe6 23. Nxf7 Rxf7 24. Rxe6+ Re7 25. Rxg6 Kd7 26. Rxg5 {1-0 (39) Garifullina,L (2390)-Corrales Jimenez,Z (2191) Krasnaya Polyana 2021}) 20... Bxe6 {[%emt 0:13:27]} 21. Be5 {[%emt 0:00:12]} Kf8 {[%emt 0:00:58]} 22. Nf6 $1 {[%emt 0:11:49][%cal Re5d6]} Rd8 {[%emt 0:02:24] Inhibits Bd6+.} 23. Bc7 {[%emt 0:13:23]} Rd4 {[%emt 0:00:59] [#]} 24. c3 {[%emt 0:01:50]} ({White should try} 24. Rxe6 $1 {[%mdl 512]} fxe6 25. Nh5+ (25. Be5 Rf4 $11) 25... Rf4 26. Nxf4 (26. Bxf4 gxh5 27. Bxg5+ Ke8 $16) 26... Bd4+ 27. Kh2 gxf4 28. Bxf4 (28. Rxf4+ Ke7 $16)) 24... Rxd3 $16 {[%emt 0:01:02] [#] White is better.} 25. Re3 $1 {[%emt 0:00:07]} Bxf6 {[%emt 0:04:50]} 26. Rxd3 {[%emt 0:00:11]} Bc4 {[%emt 0:00:17] [#]} 27. Rxf6 $1 {[%emt 0:00:14]} Bxd3 {[%emt 0:00:16]} 28. Rd6 {And now Rd8+ would win.} Bb5 29. Rd8+ {[%mdl 1088] Skewer. White has strong compensation.} Be8 30. Ra8 {Weighted Error Value: White=0.05 (flawless) /Black=0.16 (very precise)} 1-0